Workbook

Sheet Sheet1
A1: 紫云自治县2022年下半年事业单位面向社会公开招聘工作人员总成绩
A2: 序号 | B2: 面试准考证号 | C2: 姓名 | D2: 报考单位及代码 | E2: 拟招聘人数 | F2: 报考岗位及代码 | G2: 笔试成绩 | H2: 笔试折算成绩 | I2: 面试分组 | J2: 面试室 | K2: 面试成绩 | L2: 面试折算成绩 | M2: 总成绩
A3: 1 | B3: ZY2022004 | C3: 陈田翠 | D3: 6001紫云自治县巡察工作服务中心 | E3: 1 | F3: 12506600101管理岗位 | G3: 101.50 | H3: =G3/1.5*0.6 -> 40.60 | I3: 1 | J3: 01 | K3: 78.67 | L3: =K3*0.4 -> 31.47 | M3: =H3+L3 -> 72.07
A4: 2 | B4: ZY2022001 | C4: 康进 | D4: 6001紫云自治县巡察工作服务中心 | E4: 1 | F4: 12506600101管理岗位 | G4: 103.00 | H4: =G4/1.5*0.6 -> 41.20 | I4: 1 | J4: 01 | K4: 76.70 | L4: =K4*0.4 -> 30.68 | M4: 71.88
A5: 3 | B5: ZY2022002 | C5: 陈力 | D5: 6001紫云自治县巡察工作服务中心 | E5: 1 | F5: 12506600101管理岗位 | G5: 102.00 | H5: =G5/1.5*0.6 -> 40.80 | I5: 1 | J5: 01 | K5: 76.97 | L5: =K5*0.4 -> 30.79 | M5: 71.59
A6: 4 | B6: ZY2022005 | C6: 金晓卫 | D6: 6001紫云自治县巡察工作服务中心 | E6: 1 | F6: 12506600101管理岗位 | G6: 101.50 | H6: =G6/1.5*0.6 -> 40.60 | I6: 1 | J6: 01 | K6: 75.37 | L6: =K6*0.4 -> 30.15 | M6: 70.75
A7: 5 | B7: ZY2022003 | C7: 王如书 | D7: 6001紫云自治县巡察工作服务中心 | E7: 1 | F7: 12506600101管理岗位 | G7: 101.50 | H7: =G7/1.5*0.6 -> 40.60 | I7: 1 | J7: 01 | K7: 71.94 | L7: =K7*0.4 -> 28.78 | M7: 69.38
A8: 6 | B8: ZY2022006 | C8: 李雪梅 | D8: 6002紫云自治县党代表大会代表联络办公室 | E8: 1 | F8: 12506600201管理岗位 | G8: 106.50 | H8: =G8/1.5*0.6 -> 42.60 | I8: 1 | J8: 01 | K8: 79.67 | L8: =K8*0.4 -> 31.87 | M8: 74.47
A9: 7 | B9: ZY2022007 | C9: 张杰 | D9: 6002紫云自治县党代表大会代表联络办公室 | E9: 1 | F9: 12506600201管理岗位 | G9: 106.00 | H9: 42.40 | I9: 1 | J9: 01 | K9: 76.47 | L9: 30.59 | M9: =H9+L9 -> 72.99
A10: 8 | B10: ZY2022008 | C10: 陈小宇 | D10: 6002紫云自治县党代表大会代表联络办公室 | E10: 1 | F10: 12506600201管理岗位 | G10: 103.00 | H10: 41.20 | I10: 1 | J10: 01 | K10: 73.87 | L10: 29.55 | M10: 70.75
A11: 9 | B11: ZY2022009 | C11: 陈俊宇 | D11: 6003紫云自治县公务员综合服务中心（县年度综合考核保障中心） | E11: 1 | F11: 12506600301管理岗位 | G11: 105.50 | H11: 42.20 | I11: 1 | J11: 01 | K11: 78.44 | L11: 31.38 | M11: 73.58
A12: 10 | B12: ZY2022011 | C12: 苏琪 | D12: 6003紫云自治县公务员综合服务中心（县年度综合考核保障中心） | E12: 1 | F12: 12506600301管理岗位 | G12: 101.50 | H12: 40.60 | I12: 1 | J12: 01 | K12: 80.84 | L12: 32.34 | M12: 72.94
A13: 11 | B13: ZY2022012 | C13: 李兴敏 | D13: 6003紫云自治县公务员综合服务中心（县年度综合考核保障中心） | E13: 1 | F13: 12506600301管理岗位 | G13: 101.50 | H13: 40.60 | I13: 1 | J13: 01 | K13: 77.54 | L13: 31.02 | M13: 71.62
A14: 12 | B14: ZY2022010 | C14: 严彬 | D14: 6003紫云自治县公务员综合服务中心（县年度综合考核保障中心） | E14: 1 | F14: 12506600301管理岗位 | G14: 102.00 | H14: 40.80 | I14: 1 | J14: 01 | K14: 76.80 | L14: 30.72 | M14: 71.52
A15: 13 | B15: ZY2022013 | C15: 周艳维 | D15: 6005紫云自治县创建工作办公室 | E15: 1 | F15: 12506600501管理岗位 | G15: 101.50 | H15: 40.60 | I15: 1 | J15: 01 | K15: 80.07 | L15: 32.03 | M15: 72.63
A16: 14 | B16: ZY2022016 | C16: 孙红 | D16: 6005紫云自治县创建工作办公室 | E16: 1 | F16: 12506600501管理岗位 | G16: 100.00 | H16: 40.00 | I16: 1 | J16: 01 | K16: 78.94 | L16: 31.58 | M16: 71.58
A17: 15 | B17: ZY2022014 | C17: 龙桥应 | D17: 6005紫云自治县创建工作办公室 | E17: 1 | F17: 12506600501管理岗位 | G17: 101.00 | H17: 40.40 | I17: 1 | J17: 01 | K17: 76.84 | L17: 30.74 | M17: 71.14
A18: 16 | B18: ZY2022015 | C18: 曾忠情 | D18: 6005紫云自治县创建工作办公室 | E18: 1 | F18: 12506600501管理岗位 | G18: 100.00 | H18: 40.00 | I18: 1 | J18: 01 | K18: 72.24 | L18: 28.90 | M18: 68.90
A19: 17 | B19: ZY2022017 | C19: 李展 | D19: 6006紫云自治县煤矿安全技术服务站 | E19: 1 | F19: 12506600601专业技术岗位 | G19: 105.00 | H19: 42.00 | I19: 1 | J19: 01 | K19: 79.60 | L19: 31.84 | M19: 73.84
A20: 18 | B20: ZY2022018 | C20: 洪洋 | D20: 6006紫云自治县煤矿安全技术服务站 | E20: 1 | F20: 12506600601专业技术岗位 | G20: 102.00 | H20: 40.80 | I20: 1 | J20: 01 | K20: 75.70 | L20: 30.28 | M20: 71.08
A21: 19 | B21: ZY2022019 | C21: 李金谕 | D21: 6006紫云自治县煤矿安全技术服务站 | E21: 1 | F21: 12506600601专业技术岗位 | G21: 100.00 | H21: 40.00 | I21: 1 | J21: 01 | K21: 缺考 | L21: 缺考 | M21: 缺考
A22: 20 | B22: ZY2022020 | C22: 罗丹 | D22: 6007紫云自治县格凸河镇国土资源管理所 | E22: 1 | F22: 12506600701专业技术岗位 | G22: 106.50 | H22: 42.60 | I22: 1 | J22: 01 | K22: 78.87 | L22: 31.55 | M22: 74.15
A23: 21 | B23: ZY2022021 | C23: 孔维全 | D23: 6007紫云自治县格凸河镇国土资源管理所 | E23: 1 | F23: 12506600701专业技术岗位 | G23: 103.50 | H23: 41.40 | I23: 1 | J23: 01 | K23: 74.20 | L23: 29.68 | M23: 71.08
A24: 22 | B24: ZY2022022 | C24: 倪安金 | D24: 6007紫云自治县格凸河镇国土资源管理所 | E24: 1 | F24: 12506600701专业技术岗位 | G24: 99.50 | H24: 39.80 | I24: 1 | J24: 01 | K24: 缺考 | L24: 缺考 | M24: 缺考
A25: 23 | B25: ZY2022023 | C25: 顾毓宇 | D25: 6008紫云自治县猫营镇国土资源管理所 | E25: 1 | F25: 12506600801专业技术岗位 | G25: 99.00 | H25: 39.60 | I25: 1 | J25: 01 | K25: 80.44 | L25: 32.18 | M25: 71.78
A26: 24 | B26: ZY2022024 | C26: 姜辉辉 | D26: 6008紫云自治县猫营镇国土资源管理所 | E26: 1 | F26: 12506600801专业技术岗位 | G26: 97.50 | H26: 39.00 | I26: 1 | J26: 01 | K26: 76.67 | L26: 30.67 | M26: 69.67
A27: 25 | B27: ZY2022025 | C27: 郭维娟 | D27: 6008紫云自治县猫营镇国土资源管理所 | E27: 1 | F27: 12506600801专业技术岗位 | G27: 97.00 | H27: 38.80 | I27: 1 | J27: 01 | K27: 73.77 | L27: 29.51 | M27: 68.31
A28: 26 | B28: ZY2022026 | C28: 蔡智超 | D28: 6009紫云自治县卫生健康综合行政执法大队 | E28: 1 | F28: 12506600901管理岗位 | G28: 104.50 | H28: 41.80 | I28: 1 | J28: 01 | K28: 77.67 | L28: 31.07 | M28: 72.87
A29: 27 | B29: ZY2022027 | C29: 胡祖微 | D29: 6009紫云自治县卫生健康综合行政执法大队 | E29: 1 | F29: 12506600901管理岗位 | G29: 101.00 | H29: 40.40 | I29: 1 | J29: 01 | K29: 75.54 | L29: 30.22 | M29: 70.62
A30: 28 | B30: ZY2022028 | C30: 李灵 | D30: 6009紫云自治县卫生健康综合行政执法大队 | E30: 1 | F30: 12506600901管理岗位 | G30: 98.50 | H30: 39.40 | I30: 1 | J30: 01 | K30: 77.34 | L30: 30.94 | M30: 70.34
A31: 29 | B31: ZY2022030 | C31: 王尚霖 | D31: 6010紫云自治县格凸河镇交通管理站 | E31: 1 | F31: 12506601001管理岗位 | G31: 100.50 | H31: 40.20 | I31: 2 | J31: 04 | K31: 77.17 | L31: 30.87 | M31: 71.07
A32: 30 | B32: ZY2022029 | C32: 于先航 | D32: 6010紫云自治县格凸河镇交通管理站 | E32: 1 | F32: 12506601001管理岗位 | G32: 101.00 | H32: 40.40 | I32: 2 | J32: 04 | K32: 75.00 | L32: 30.00 | M32: 70.40
A33: 31 | B33: ZY2022031 | C33: 易贤 | D33: 6010紫云自治县格凸河镇交通管理站 | E33: 1 | F33: 12506601001管理岗位 | G33: 100.00 | H33: 40.00 | I33: 2 | J33: 04 | K33: 72.17 | L33: 28.87 | M33: 68.87
A34: 32 | B34: ZY2022032 | C34: 周康 | D34: 6011紫云自治县宗地镇交通管理站 | E34: 1 | F34: 12506601101专业技术岗位 | G34: 109.00 | H34: 43.60 | I34: 2 | J34: 04 | K34: 78.33 | L34: 31.33 | M34: 74.93
A35: 33 | B35: ZY2022034 | C35: 杨福星 | D35: 6011紫云自治县宗地镇交通管理站 | E35: 1 | F35: 12506601101专业技术岗位 | G35: 100.00 | H35: 40.00 | I35: 2 | J35: 04 | K35: 77.00 | L35: 30.80 | M35: 70.80
A36: 34 | B36: ZY2022033 | C36: 朱珂金 | D36: 6011紫云自治县宗地镇交通管理站 | E36: 1 | F36: 12506601101专业技术岗位 | G36: 102.50 | H36: 41.00 | I36: 2 | J36: 04 | K36: 72.93 | L36: 29.17 | M36: 70.17
A37: 35 | B37: ZY2022036 | C37: 杜山玉 | D37: 6012紫云自治县就业局 | E37: 1 | F37: 12506601201管理岗位 | G37: 105.50 | H37: 42.20 | I37: 2 | J37: 04 | K37: 80.67 | L37: 32.27 | M37: 74.47
A38: 36 | B38: ZY2022037 | C38: 张简 | D38: 6012紫云自治县就业局 | E38: 1 | F38: 12506601201管理岗位 | G38: 103.50 | H38: 41.40 | I38: 2 | J38: 04 | K38: 79.67 | L38: 31.87 | M38: 73.27
A39: 37 | B39: ZY2022035 | C39: 黄貣 | D39: 6012紫云自治县就业局 | E39: 1 | F39: 12506601201管理岗位 | G39: 105.50 | H39: 42.20 | I39: 2 | J39: 04 | K39: 73.67 | L39: 29.47 | M39: 71.67
A40: 38 | B40: ZY2022038 | C40: 陈星瑶 | D40: 6013紫云自治县人事劳动争议仲裁院 | E40: 1 | F40: 12506601301管理岗位 | G40: 117.00 | H40: 46.80 | I40: 2 | J40: 04 | K40: 76.33 | L40: 30.53 | M40: 77.33
A41: 39 | B41: ZY2022040 | C41: 陈秀英 | D41: 6013紫云自治县人事劳动争议仲裁院 | E41: 1 | F41: 12506601301管理岗位 | G41: 103.00 | H41: 41.20 | I41: 2 | J41: 04 | K41: 75.00 | L41: 30.00 | M41: 71.20
A42: 40 | B42: ZY2022039 | C42: 孙涛 | D42: 6013紫云自治县人事劳动争议仲裁院 | E42: 1 | F42: 12506601301管理岗位 | G42: 104.50 | H42: 41.80 | I42: 2 | J42: 04 | K42: 缺考 | L42: 缺考 | M42: 缺考
A43: 41 | B43: ZY2022043 | C43: 杨璐月 | D43: 6014紫云自治县安全生产监控与调度中心 | E43: 1 | F43: 12506601401管理岗位 | G43: 108.50 | H43: 43.40 | I43: 2 | J43: 04 | K43: 83.00 | L43: =K43*0.4 -> 33.20 | M43: =H43+L43 -> 76.60
A44: 42 | B44: ZY2022042 | C44: 邓文叶 | D44: 6014紫云自治县安全生产监控与调度中心 | E44: 1 | F44: 12506601401管理岗位 | G44: 111.00 | H44: 44.40 | I44: 2 | J44: 04 | K44: 77.67 | L44: 31.07 | M44: 75.47
A45: 43 | B45: ZY2022041 | C45: 王礼瑞 | D45: 6014紫云自治县安全生产监控与调度中心 | E45: 1 | F45: 12506601401管理岗位 | G45: 114.50 | H45: 45.80 | I45: 2 | J45: 04 | K45: 73.67 | L45: 29.47 | M45: 75.27
A46: 44 | B46: ZY2022044 | C46: 罗辉 | D46: 6014紫云自治县安全生产监控与调度中心 | E46: 1 | F46: 12506601402管理岗位 | G46: 103.00 | H46: 41.20 | I46: 2 | J46: 04 | K46: 79.83 | L46: 31.93 | M46: 73.13
A47: 45 | B47: ZY2022046 | C47: 文洪钦 | D47: 6014紫云自治县安全生产监控与调度中心 | E47: 1 | F47: 12506601402管理岗位 | G47: 100.00 | H47: 40.00 | I47: 2 | J47: 04 | K47: 78.50 | L47: 31.40 | M47: 71.40
A48: 46 | B48: ZY2022045 | C48: 陈露平 | D48: 6014紫云自治县安全生产监控与调度中心 | E48: 1 | F48: 12506601402管理岗位 | G48: 101.50 | H48: 40.60 | I48: 2 | J48: 04 | K48: 74.00 | L48: 29.60 | M48: 70.20
A49: 47 | B49: ZY2022047 | C49: 罗飞 | D49: 6014紫云自治县安全生产监控与调度中心 | E49: 1 | F49: 12506601402管理岗位 | G49: 100.00 | H49: 40.00 | I49: 2 | J49: 04 | K49: 73.33 | L49: 29.33 | M49: 69.33
A50: 48 | B50: ZY2022050 | C50: 魏云 | D50: 6015紫云自治县四大寨乡综合行政执法分局 | E50: 1 | F50: 12506601501管理岗位 | G50: 93.50 | H50: 37.40 | I50: 2 | J50: 04 | K50: 80.67 | L50: 32.27 | M50: 69.67
A51: 49 | B51: ZY2022049 | C51: 古锦军 | D51: 6015紫云自治县四大寨乡综合行政执法分局 | E51: 1 | F51: 12506601501管理岗位 | G51: 96.50 | H51: 38.60 | I51: 2 | J51: 04 | K51: 71.17 | L51: 28.47 | M51: 67.07
A52: 50 | B52: ZY2022048 | C52: 袁小巧 | D52: 6015紫云自治县四大寨乡综合行政执法分局 | E52: 1 | F52: 12506601501管理岗位 | G52: 96.50 | H52: 38.60 | I52: 2 | J52: 04 | K52: 71.03 | L52: 28.41 | M52: 67.01
A53: 51 | B53: ZY2022051 | C53: 雷浩 | D53: 6016紫云自治县棚户区改造办公室 | E53: 1 | F53: 12506601601专业技术岗位 | G53: 107.50 | H53: 43.00 | I53: 6 | J53: 07 | K53: 78.03 | L53: 31.21 | M53: 74.21
A54: 52 | B54: ZY2022052 | C54: 梁大威 | D54: 6017紫云自治县乡村振兴发展中心 | E54: 2 | F54: 12506601701管理岗位 | G54: 110.50 | H54: 44.20 | I54: 2 | J54: 03 | K54: 76.33 | L54: 30.53 | M54: 74.73
A55: 53 | B55: ZY2022056 | C55: 钱芷欣 | D55: 6017紫云自治县乡村振兴发展中心 | E55: 2 | F55: 12506601701管理岗位 | G55: 96.50 | H55: 38.60 | I55: 2 | J55: 04 | K55: 76.17 | L55: 30.47 | M55: 69.07
A56: 54 | B56: ZY2022055 | C56: 唐仕昌 | D56: 6017紫云自治县乡村振兴发展中心 | E56: 2 | F56: 12506601701管理岗位 | G56: 96.50 | H56: 38.60 | I56: 2 | J56: 04 | K56: 75.33 | L56: 30.13 | M56: 68.73
A57: 55 | B57: ZY2022053 | C57: 韦馨尧 | D57: 6017紫云自治县乡村振兴发展中心 | E57: 2 | F57: 12506601701管理岗位 | G57: 100.00 | H57: 40.00 | I57: 2 | J57: 04 | K57: 70.00 | L57: 28.00 | M57: 68.00
A58: 56 | B58: ZY2022057 | C58: 吴思乐 | D58: 6017紫云自治县乡村振兴发展中心 | E58: 2 | F58: 12506601701管理岗位 | G58: 92.50 | H58: 37.00 | I58: 2 | J58: 04 | K58: 77.17 | L58: 30.87 | M58: 67.87
A59: 57 | B59: ZY2022054 | C59: 吴小会 | D59: 6017紫云自治县乡村振兴发展中心 | E59: 2 | F59: 12506601701管理岗位 | G59: 96.50 | H59: 38.60 | I59: 2 | J59: 04 | K59: 71.00 | L59: 28.40 | M59: 67.00
A60: 58 | B60: ZY2022058 | C60: 胡路兴 | D60: 6018紫云自治县社会救助中心 | E60: 1 | F60: 12506601801管理岗位 | G60: 108.50 | H60: 43.40 | I60: 2 | J60: 04 | K60: 79.33 | L60: 31.73 | M60: 75.13
A61: 59 | B61: ZY2022059 | C61: 廖文涛 | D61: 6018紫云自治县社会救助中心 | E61: 1 | F61: 12506601801管理岗位 | G61: 107.50 | H61: 43.00 | I61: 2 | J61: 04 | K61: 75.00 | L61: 30.00 | M61: 73.00
A62: 60 | B62: ZY2022060 | C62: 涂让 | D62: 6018紫云自治县社会救助中心 | E62: 1 | F62: 12506601801管理岗位 | G62: 106.00 | H62: 42.40 | I62: 2 | J62: 04 | K62: 缺考 | L62: 缺考 | M62: 缺考
A63: 61 | B63: ZY2022061 | C63: 文阳 | D63: 6019紫云自治县水利建设站 | E63: 1 | F63: 12506601901专业技术岗位 | G63: 96.00 | H63: 38.40 | I63: 3 | J63: 04 | K63: 76.07 | L63: 30.43 | M63: 68.83
A64: 62 | B64: ZY2022062 | C64: 王志行 | D64: 6020紫云自治县云岭街道农业服务中心 | E64: 1 | F64: 12506602001专业技术岗位 | G64: 94.00 | H64: 37.60 | I64: 3 | J64: 06 | K64: 82.37 | L64: 32.95 | M64: 70.55
A65: 63 | B65: ZY2022063 | C65: 杨忠铭 | D65: 6020紫云自治县云岭街道农业服务中心 | E65: 1 | F65: 12506602001专业技术岗位 | G65: 93.00 | H65: 37.20 | I65: 3 | J65: 06 | K65: 81.33 | L65: 32.53 | M65: 69.73
A66: 64 | B66: ZY2022064 | C66: 吴敏 | D66: 6020紫云自治县云岭街道农业服务中心 | E66: 1 | F66: 12506602001专业技术岗位 | G66: 92.00 | H66: 36.80 | I66: 3 | J66: 06 | K66: 81.97 | L66: 32.79 | M66: 69.59
A67: 65 | B67: ZY2022065 | C67: 邹欢 | D67: 6021紫云自治县猫营镇龙井服务中心 | E67: 1 | F67: 12506602101管理岗位 | G67: 97.50 | H67: 39.00 | I67: 3 | J67: 06 | K67: 80.30 | L67: 32.12 | M67: 71.12
A68: 66 | B68: ZY2022066 | C68: 付刚 | D68: 6021紫云自治县猫营镇龙井服务中心 | E68: 1 | F68: 12506602101管理岗位 | G68: 96.00 | H68: =G68/1.5*0.6 -> 38.40 | I68: 3 | J68: 06 | K68: 80.77 | L68: 32.31 | M68: 70.71
A69: 67 | B69: ZY2022067 | C69: 陈文均 | D69: 6021紫云自治县猫营镇龙井服务中心 | E69: 1 | F69: 12506602101管理岗位 | G69: 94.50 | H69: 37.80 | I69: 3 | J69: 06 | K69: 77.83 | L69: =K69*0.4 -> 31.13 | M69: 68.93
A70: 68 | B70: ZY2022068 | C70: 韦彪 | D70: 6022紫云自治县猫营镇乡村振兴工作站 | E70: 1 | F70: 12506602201专业技术岗位 | G70: 100.00 | H70: 40.00 | I70: 3 | J70: 06 | K70: 80.63 | L70: 32.25 | M70: 72.25
A71: 69 | B71: ZY2022069 | C71: 陆凤岗 | D71: 6022紫云自治县猫营镇乡村振兴工作站 | E71: 1 | F71: 12506602201专业技术岗位 | G71: 94.50 | H71: 37.80 | I71: 3 | J71: 06 | K71: 74.27 | L71: 29.71 | M71: 67.51
A72: 70 | B72: ZY2022070 | C72: 伍喜广 | D72: 6022紫云自治县猫营镇乡村振兴工作站 | E72: 1 | F72: 12506602201专业技术岗位 | G72: 93.50 | H72: 37.40 | I72: 3 | J72: 06 | K72: 缺考 | L72: 缺考 | M72: 缺考
A73: 71 | B73: ZY2022071 | C73: 李昆伦 | D73: 6023紫云自治县猫营镇村镇建设管理站 | E73: 1 | F73: 12506602301管理岗位 | G73: 102.00 | H73: 40.80 | I73: 3 | J73: 06 | K73: 84.47 | L73: 33.79 | M73: =H73+L73 -> 74.59
A74: 72 | B74: ZY2022072 | C74: 李红娴 | D74: 6023紫云自治县猫营镇村镇建设管理站 | E74: 1 | F74: 12506602301管理岗位 | G74: 100.50 | H74: 40.20 | I74: 3 | J74: 06 | K74: 78.73 | L74: 31.49 | M74: 71.69
A75: 73 | B75: ZY2022073 | C75: 林波 | D75: 6023紫云自治县猫营镇村镇建设管理站 | E75: 1 | F75: 12506602301管理岗位 | G75: 99.00 | H75: 39.60 | I75: 3 | J75: 06 | K75: 75.63 | L75: 30.25 | M75: 69.85
A76: 74 | B76: ZY2022074 | C76: 吴杰 | D76: 6023紫云自治县猫营镇村镇建设管理站 | E76: 1 | F76: 12506602302管理岗位 | G76: 100.50 | H76: 40.20 | I76: 3 | J76: 06 | K76: 81.47 | L76: 32.59 | M76: 72.79
A77: 75 | B77: ZY2022075 | C77: 王飞 | D77: 6023紫云自治县猫营镇村镇建设管理站 | E77: 1 | F77: 12506602302管理岗位 | G77: 99.50 | H77: 39.80 | I77: 3 | J77: 06 | K77: 78.43 | L77: 31.37 | M77: 71.17
A78: 76 | B78: ZY2022076 | C78: 任惠焱 | D78: 6023紫云自治县猫营镇村镇建设管理站 | E78: 1 | F78: 12506602302管理岗位 | G78: 97.00 | H78: 38.80 | I78: 3 | J78: 06 | K78: 75.73 | L78: 30.29 | M78: 69.09
A79: 77 | B79: ZY2022077 | C79: 韦佳黎 | D79: 6024紫云自治县格凸河镇林业和环境保护工作站 | E79: 1 | F79: 12506602401专业技术岗位 | G79: 90.50 | H79: 36.20 | I79: 3 | J79: 06 | K79: 84.07 | L79: 33.63 | M79: 69.83
A80: 78 | B80: ZY2022078 | C80: 王逍 | D80: 6024紫云自治县格凸河镇林业和环境保护工作站 | E80: 1 | F80: 12506602401专业技术岗位 | G80: 72.00 | H80: 28.80 | I80: 3 | J80: 06 | K80: 66.30 | L80: 26.52 | M80: 55.32
A81: 79 | B81: ZY2022079 | C81: 杨广 | D81: 6025紫云自治县格凸河镇政务服务中心 | E81: 1 | F81: 12506602501管理岗位 | G81: 98.00 | H81: 39.20 | I81: 3 | J81: 06 | K81: 77.20 | L81: 30.88 | M81: 70.08
A82: 80 | B82: ZY2022081 | C82: 潘遥 | D82: 6025紫云自治县格凸河镇政务服务中心 | E82: 1 | F82: 12506602501管理岗位 | G82: 92.50 | H82: 37.00 | I82: 3 | J82: 06 | K82: 79.17 | L82: 31.67 | M82: 68.67
A83: 81 | B83: ZY2022080 | C83: 韦梦月 | D83: 6025紫云自治县格凸河镇政务服务中心 | E83: 1 | F83: 12506602501管理岗位 | G83: 93.00 | H83: 37.20 | I83: 3 | J83: 06 | K83: 78.53 | L83: 31.41 | M83: 68.61
A84: 82 | B84: ZY2022082 | C84: 付思春 | D84: 6026紫云自治县格凸河镇农业服务中心 | E84: 1 | F84: 12506602601专业技术岗位 | G84: 82.50 | H84: 33.00 | I84: 3 | J84: 06 | K84: 77.00 | L84: 30.80 | M84: 63.80
A85: 83 | B85: ZY2022083 | C85: 彭金胜 | D85: 6026紫云自治县格凸河镇农业服务中心 | E85: 1 | F85: 12506602601专业技术岗位 | G85: 78.00 | H85: 31.20 | I85: 3 | J85: 06 | K85: 72.10 | L85: 28.84 | M85: 60.04
A86: 84 | B86: ZY2022084 | C86: 杨江 | D86: 6026紫云自治县格凸河镇农业服务中心 | E86: 1 | F86: 12506602601专业技术岗位 | G86: 67.50 | H86: 27.00 | I86: 3 | J86: 06 | K86: 79.23 | L86: 31.69 | M86: 58.69
A87: 85 | B87: ZY2022087 | C87: 谢锋 | D87: 6027紫云自治县板当镇政务服务中心 | E87: 1 | F87: 12506602701管理岗位 | G87: 96.50 | H87: 38.60 | I87: 3 | J87: 06 | K87: 81.80 | L87: 32.72 | M87: 71.32
A88: 86 | B88: ZY2022085 | C88: 郭丁 | D88: 6027紫云自治县板当镇政务服务中心 | E88: 1 | F88: 12506602701管理岗位 | G88: 97.50 | H88: 39.00 | I88: 3 | J88: 06 | K88: 79.97 | L88: 31.99 | M88: 70.99
A89: 87 | B89: ZY2022086 | C89: 王周香 | D89: 6027紫云自治县板当镇政务服务中心 | E89: 1 | F89: 12506602701管理岗位 | G89: 97.00 | H89: 38.80 | I89: 3 | J89: 06 | K89: 78.47 | L89: 31.39 | M89: 70.19
A90: 88 | B90: ZY2022088 | C90: 母丹 | D90: 6028紫云自治县板当镇乡村振兴工作站 | E90: 1 | F90: 12506602801专业技术岗位 | G90: 94.50 | H90: 37.80 | I90: 3 | J90: 06 | K90: 81.83 | L90: 32.73 | M90: 70.53
A91: 89 | B91: ZY2022089 | C91: 冯兴胜 | D91: 6028紫云自治县板当镇乡村振兴工作站 | E91: 1 | F91: 12506602801专业技术岗位 | G91: 79.50 | H91: 31.80 | I91: 3 | J91: 06 | K91: 79.17 | L91: 31.67 | M91: 63.47
A92: 90 | B92: ZY2022090 | C92: 吴其洋 | D92: 6028紫云自治县板当镇乡村振兴工作站 | E92: 1 | F92: 12506602801专业技术岗位 | G92: 79.00 | H92: 31.60 | I92: 3 | J92: 06 | K92: 71.30 | L92: 28.52 | M92: 60.12
A93: 91 | B93: ZY2022093 | C93: 陆奎芬 | D93: 6030紫云自治县猴场镇财政分局 | E93: 1 | F93: 12506603001专业技术岗位 | G93: 99.00 | H93: 39.60 | I93: 4 | J93: 05 | K93: 80.37 | L93: 32.15 | M93: 71.75
A94: 92 | B94: ZY2022092 | C94: 杨凯 | D94: 6030紫云自治县猴场镇财政分局 | E94: 1 | F94: 12506603001专业技术岗位 | G94: 101.00 | H94: 40.40 | I94: 4 | J94: 05 | K94: 77.63 | L94: 31.05 | M94: 71.45
A95: 93 | B95: ZY2022091 | C95: 杨正春 | D95: 6030紫云自治县猴场镇财政分局 | E95: 1 | F95: 12506603001专业技术岗位 | G95: 101.00 | H95: 40.40 | I95: 4 | J95: 06 | K95: 76.90 | L95: 30.76 | M95: 71.16
A96: 94 | B96: ZY2022094 | C96: 吴吉 | D96: 6031紫云自治县猴场镇林业和环境保护工作站 | E96: 1 | F96: 12506603101专业技术岗位 | G96: 104.00 | H96: 41.60 | I96: 4 | J96: 05 | K96: 79.20 | L96: 31.68 | M96: 73.28
A97: 95 | B97: ZY2022095 | C97: 任婧姝 | D97: 6031紫云自治县猴场镇林业和环境保护工作站 | E97: 1 | F97: 12506603101专业技术岗位 | G97: 82.00 | H97: 32.80 | I97: 4 | J97: 05 | K97: 71.70 | L97: 28.68 | M97: 61.48
A98: 96 | B98: ZY2022096 | C98: 吴家佳 | D98: 6031紫云自治县猴场镇林业和环境保护工作站 | E98: 1 | F98: 12506603101专业技术岗位 | G98: 80.00 | H98: 32.00 | I98: 4 | J98: 05 | K98: 缺考 | L98: 缺考 | M98: 缺考
A99: 97 | B99: ZY2022097 | C99: 柳月晓 | D99: 6032紫云自治县宗地镇财政分局 | E99: 3 | F99: 12506603201管理岗位 | G99: 101.00 | H99: 40.40 | I99: 4 | J99: 05 | K99: 81.23 | L99: 32.49 | M99: 72.89
A100: 98 | B100: ZY2022098 | C100: 周良丽 | D100: 6032紫云自治县宗地镇财政分局 | E100: 3 | F100: 12506603201管理岗位 | G100: 101.00 | H100: 40.40 | I100: 4 | J100: 05 | K100: 79.10 | L100: 31.64 | M100: 72.04
A101: 99 | B101: ZY2022099 | C101: 余沙沙 | D101: 6032紫云自治县宗地镇财政分局 | E101: 3 | F101: 12506603201管理岗位 | G101: 99.50 | H101: 39.80 | I101: 4 | J101: 05 | K101: 79.33 | L101: 31.73 | M101: 71.53
A102: 100 | B102: ZY2022101 | C102: 吴梦杰 | D102: 6032紫云自治县宗地镇财政分局 | E102: 3 | F102: 12506603201管理岗位 | G102: 98.00 | H102: 39.20 | I102: 4 | J102: 05 | K102: 77.83 | L102: 31.13 | M102: 70.33
A103: 101 | B103: ZY2022100 | C103: 魏玲珑 | D103: 6032紫云自治县宗地镇财政分局 | E103: 3 | F103: 12506603201管理岗位 | G103: 98.50 | H103: 39.40 | I103: 4 | J103: 05 | K103: 76.90 | L103: 30.76 | M103: 70.16
A104: 102 | B104: ZY2022104 | C104: 岑爱明 | D104: 6032紫云自治县宗地镇财政分局 | E104: 3 | F104: 12506603201管理岗位 | G104: 96.50 | H104: 38.60 | I104: 4 | J104: 05 | K104: 78.80 | L104: 31.52 | M104: 70.12
A105: 103 | B105: ZY2022103 | C105: 袁密峰 | D105: 6032紫云自治县宗地镇财政分局 | E105: 3 | F105: 12506603201管理岗位 | G105: 97.50 | H105: 39.00 | I105: 4 | J105: 05 | K105: 76.07 | L105: 30.43 | M105: 69.43
A106: 104 | B106: ZY2022102 | C106: 杨洋 | D106: 6032紫云自治县宗地镇财政分局 | E106: 3 | F106: 12506603201管理岗位 | G106: 98.00 | H106: 39.20 | I106: 4 | J106: 05 | K106: 73.30 | L106: 29.32 | M106: 68.52
A107: 105 | B107: ZY2022105 | C107: 韦小换 | D107: 6032紫云自治县宗地镇财政分局 | E107: 3 | F107: 12506603201管理岗位 | G107: 95.50 | H107: 38.20 | I107: 4 | J107: 05 | K107: 73.07 | L107: 29.23 | M107: 67.43
A108: 106 | B108: ZY2022106 | C108: 王小伟 | D108: 6033紫云自治县宗地镇政务服务中心 | E108: 1 | F108: 12506603301管理岗位 | G108: 84.00 | H108: 33.60 | I108: 4 | J108: 05 | K108: 73.60 | L108: 29.44 | M108: 63.04
A109: 107 | B109: ZY2022108 | C109: 梁大举 | D109: 6033紫云自治县宗地镇政务服务中心 | E109: 1 | F109: 12506603301管理岗位 | G109: 72.00 | H109: 28.80 | I109: 4 | J109: 05 | K109: 76.67 | L109: 30.67 | M109: 59.47
A110: 108 | B110: ZY2022107 | C110: 吴行刚 | D110: 6033紫云自治县宗地镇政务服务中心 | E110: 1 | F110: 12506603301管理岗位 | G110: 72.00 | H110: 28.80 | I110: 4 | J110: 05 | K110: 60.00 | L110: 24.00 | M110: 52.80
A111: 109 | B111: ZY2022109 | C111: 罗家逸 | D111: 6034紫云自治县宗地镇乡村振兴工作站 | E111: 1 | F111: 12506603401专业技术岗位 | G111: 94.00 | H111: 37.60 | I111: 4 | J111: 05 | K111: 80.10 | L111: 32.04 | M111: 69.64
A112: 110 | B112: ZY2022110 | C112: 王娇 | D112: 6034紫云自治县宗地镇乡村振兴工作站 | E112: 1 | F112: 12506603401专业技术岗位 | G112: 89.50 | H112: 35.80 | I112: 4 | J112: 05 | K112: 76.97 | L112: 30.79 | M112: 66.59
A113: 111 | B113: ZY2022111 | C113: 万忠贇 | D113: 6034紫云自治县宗地镇乡村振兴工作站 | E113: 1 | F113: 12506603401专业技术岗位 | G113: 88.00 | H113: 35.20 | I113: 4 | J113: 05 | K113: 74.23 | L113: 29.69 | M113: 64.89
A114: 112 | B114: ZY2022112 | C114: 吴齐俭 | D114: 6035紫云自治县大营镇林业与环境保护工作站 | E114: 1 | F114: 12506603501专业技术岗位 | G114: 92.50 | H114: 37.00 | I114: 4 | J114: 05 | K114: 80.90 | L114: 32.36 | M114: 69.36
A115: 113 | B115: ZY2022113 | C115: 齐星月 | D115: 6035紫云自治县大营镇林业与环境保护工作站 | E115: 1 | F115: 12506603501专业技术岗位 | G115: 85.50 | H115: 34.20 | I115: 4 | J115: 05 | K115: 76.87 | L115: 30.75 | M115: 64.95
A116: 114 | B116: ZY2022114 | C116: 杨启线 | D116: 6035紫云自治县大营镇林业与环境保护工作站 | E116: 1 | F116: 12506603501专业技术岗位 | G116: 84.00 | H116: 33.60 | I116: 4 | J116: 05 | K116: 75.40 | L116: 30.16 | M116: 63.76
A117: 115 | B117: ZY2022115 | C117: 吴永剑 | D117: 6036紫云自治县大营镇水利和移民工作站 | E117: 1 | F117: 12506603601专业技术岗位 | G117: 67.50 | H117: 27.00 | I117: 7 | J117: 08 | K117: 77.67 | L117: 31.07 | M117: 58.07
A118: 116 | B118: ZY2022116 | C118: 杨小梅 | D118: 6036紫云自治县大营镇水利和移民工作站 | E118: 1 | F118: 12506603601专业技术岗位 | G118: 60.00 | H118: 24.00 | I118: 7 | J118: 08 | K118: 69.00 | L118: 27.60 | M118: 51.60
A119: 117 | B119: ZY2022117 | C119: 王成 | D119: 6037紫云自治县大营镇乡村振兴工作站 | E119: 2 | F119: 12506603701管理岗位 | G119: 102.00 | H119: 40.80 | I119: 4 | J119: 05 | K119: 78.20 | L119: 31.28 | M119: 72.08
A120: 118 | B120: ZY2022119 | C120: 游黔渝 | D120: 6037紫云自治县大营镇乡村振兴工作站 | E120: 2 | F120: 12506603701管理岗位 | G120: 97.00 | H120: 38.80 | I120: 4 | J120: 08 | K120: 77.53 | L120: 31.01 | M120: 69.81
A121: 119 | B121: ZY2022120 | C121: 解春洪 | D121: 6037紫云自治县大营镇乡村振兴工作站 | E121: 2 | F121: 12506603701管理岗位 | G121: 95.50 | H121: 38.20 | I121: 4 | J121: 05 | K121: 77.40 | L121: 30.96 | M121: 69.16
A122: 120 | B122: ZY2022121 | C122: 张锡瑶 | D122: 6037紫云自治县大营镇乡村振兴工作站 | E122: 2 | F122: 12506603701管理岗位 | G122: 93.50 | H122: 37.40 | I122: 4 | J122: 05 | K122: 78.27 | L122: 31.31 | M122: 68.71
A123: 121 | B123: ZY2022118 | C123: 姚贵鹏 | D123: 6037紫云自治县大营镇乡村振兴工作站 | E123: 2 | F123: 12506603701管理岗位 | G123: 97.50 | H123: 39.00 | I123: 4 | J123: 08 | K123: 73.07 | L123: 29.23 | M123: 68.23
A124: 122 | B124: ZY2022122 | C124: 郑鲜 | D124: 6037紫云自治县大营镇乡村振兴工作站 | E124: 2 | F124: 12506603701管理岗位 | G124: 92.50 | H124: 37.00 | I124: 4 | J124: 05 | K124: 74.80 | L124: 29.92 | M124: 66.92
A125: 123 | B125: ZY2022123 | C125: 刘润琴 | D125: 6038紫云自治县大营镇政务服务中心 | E125: 1 | F125: 12506603801管理岗位 | G125: 99.00 | H125: 39.60 | I125: 5 | J125: 05 | K125: 81.00 | L125: 32.40 | M125: 72.00
A126: 124 | B126: ZY2022124 | C126: 冷启超 | D126: 6038紫云自治县大营镇政务服务中心 | E126: 1 | F126: 12506603801管理岗位 | G126: 98.50 | H126: 39.40 | I126: 5 | J126: 05 | K126: 78.30 | L126: 31.32 | M126: 70.72
A127: 125 | B127: ZY2022125 | C127: 李克萍 | D127: 6038紫云自治县大营镇政务服务中心 | E127: 1 | F127: 12506603801管理岗位 | G127: 98.00 | H127: 39.20 | I127: 5 | J127: 05 | K127: 78.47 | L127: 31.39 | M127: 70.59
A128: 126 | B128: ZY2022126 | C128: 吴开艳 | D128: 6039紫云自治县大营镇农业服务中心 | E128: 1 | F128: 12506603901专业技术岗位 | G128: 78.00 | H128: 31.20 | I128: 5 | J128: 07 | K128: 80.77 | L128: 32.31 | M128: 63.51
A129: 127 | B129: ZY2022127 | C129: 罗肖 | D129: 6039紫云自治县大营镇农业服务中心 | E129: 1 | F129: 12506603901专业技术岗位 | G129: 72.50 | H129: 29.00 | I129: 5 | J129: 07 | K129: 79.47 | L129: 31.79 | M129: 60.79
A130: 128 | B130: ZY2022128 | C130: 罗亚梅 | D130: 6039紫云自治县大营镇农业服务中心 | E130: 1 | F130: 12506603901专业技术岗位 | G130: 72.50 | H130: 29.00 | I130: 5 | J130: 07 | K130: 缺考 | L130: 缺考 | M130: 缺考
A131: 129 | B131: ZY2022129 | C131: 韦小举 | D131: 6040紫云自治县火花镇村镇建设管理站 | E131: 1 | F131: 12506604001管理岗位 | G131: 93.50 | H131: 37.40 | I131: 5 | J131: 07 | K131: 82.34 | L131: 32.94 | M131: 70.34
A132: 130 | B132: ZY2022132 | C132: 刘闯 | D132: 6040紫云自治县火花镇村镇建设管理站 | E132: 1 | F132: 12506604001管理岗位 | G132: 84.50 | H132: =G132/1.5*0.6 -> 33.80 | I132: 5 | J132: 07 | K132: 77.90 | L132: 31.16 | M132: 64.96
A133: 131 | B133: ZY2022130 | C133: 刚得江 | D133: 6040紫云自治县火花镇村镇建设管理站 | E133: 1 | F133: 12506604001管理岗位 | G133: 87.00 | H133: =G133/1.5*0.6 -> 34.80 | I133: 5 | J133: 07 | K133: 71.87 | L133: 28.75 | M133: 63.55
A134: 132 | B134: ZY2022131 | C134: 王吉辉 | D134: 6040紫云自治县火花镇村镇建设管理站 | E134: 1 | F134: 12506604001管理岗位 | G134: 84.50 | H134: =G134/1.5*0.6 -> 33.80 | I134: 5 | J134: 07 | K134: 71.34 | L134: 28.54 | M134: 62.34
A135: 133 | B135: ZY2022133 | C135: 梁志鹏 | D135: 6041紫云自治县火花镇达帮政务服务中心 | E135: 1 | F135: 12506604101管理岗位 | G135: 85.50 | H135: =G135/1.5*0.6 -> 34.20 | I135: 5 | J135: 07 | K135: 77.97 | L135: =K135*0.4 -> 31.19 | M135: 65.39
A136: 134 | B136: ZY2022136 | C136: 潘尚勇 | D136: 6041紫云自治县火花镇达帮政务服务中心 | E136: 1 | F136: 12506604101管理岗位 | G136: 75.50 | H136: 30.20 | I136: 5 | J136: 07 | K136: 78.84 | L136: 31.54 | M136: 61.74
A137: 135 | B137: ZY2022134 | C137: 赵朝花 | D137: 6041紫云自治县火花镇达帮政务服务中心 | E137: 1 | F137: 12506604101管理岗位 | G137: 82.00 | H137: 32.80 | I137: 5 | J137: 07 | K137: 72.10 | L137: 28.84 | M137: 61.64
A138: 136 | B138: ZY2022135 | C138: 杨仕明 | D138: 6041紫云自治县火花镇达帮政务服务中心 | E138: 1 | F138: 12506604101管理岗位 | G138: 75.50 | H138: 30.20 | I138: 5 | J138: 07 | K138: 71.70 | L138: 28.68 | M138: 58.88
A139: 137 | B139: ZY2022138 | C139: 胡顺林 | D139: 6042紫云自治县坝羊镇政务服务中心 | E139: 1 | F139: 12506604201管理岗位 | G139: 92.50 | H139: 37.00 | I139: 5 | J139: 07 | K139: 82.60 | L139: 33.04 | M139: =H139+L139 -> 70.04
A140: 138 | B140: ZY2022137 | C140: 柳小芬 | D140: 6042紫云自治县坝羊镇政务服务中心 | E140: 1 | F140: 12506604201管理岗位 | G140: 93.50 | H140: 37.40 | I140: 5 | J140: 07 | K140: 80.70 | L140: 32.28 | M140: =H140+L140 -> 69.68
A141: 139 | B141: ZY2022139 | C141: 韦彬彬 | D141: 6042紫云自治县坝羊镇政务服务中心 | E141: 1 | F141: 12506604201管理岗位 | G141: 91.50 | H141: 36.60 | I141: 5 | J141: 07 | K141: 80.54 | L141: 32.22 | M141: =H141+L141 -> 68.82
A142: 140 | B142: ZY2022140 | C142: 王凯贤 | D142: 6043紫云自治县坝羊镇农业服务中心 | E142: 1 | F142: 12506604301专业技术岗位 | G142: 101.50 | H142: 40.60 | I142: 5 | J142: 07 | K142: 83.74 | L142: 33.50 | M142: 74.10
A143: 141 | B143: ZY2022141 | C143: 刘胜钧 | D143: 6043紫云自治县坝羊镇农业服务中心 | E143: 1 | F143: 12506604301专业技术岗位 | G143: 89.00 | H143: 35.60 | I143: 5 | J143: 07 | K143: 73.20 | L143: 29.28 | M143: 64.88
A144: 142 | B144: ZY2022143 | C144: 候清文 | D144: 6043紫云自治县坝羊镇农业服务中心 | E144: 1 | F144: 12506604301专业技术岗位 | G144: 78.50 | H144: 31.40 | I144: 5 | J144: 07 | K144: 77.37 | L144: 30.95 | M144: 62.35
A145: 143 | B145: ZY2022142 | C145: 唐菲菲 | D145: 6043紫云自治县坝羊镇农业服务中心 | E145: 1 | F145: 12506604301专业技术岗位 | G145: 78.50 | H145: 31.40 | I145: 5 | J145: 07 | K145: 缺考 | L145: 缺考 | M145: 缺考
A146: 144 | B146: ZY2022144 | C146: 袁逸雪 | D146: 6044紫云自治县坝羊镇科技宣教文化信息服务中心 | E146: 1 | F146: 12506604401管理岗位 | G146: 109.50 | H146: 43.80 | I146: 5 | J146: 07 | K146: 81.84 | L146: 32.74 | M146: 76.54
A147: 145 | B147: ZY2022145 | C147: 艾贤 | D147: 6044紫云自治县坝羊镇科技宣教文化信息服务中心 | E147: 1 | F147: 12506604401管理岗位 | G147: 97.50 | H147: 39.00 | I147: 5 | J147: 07 | K147: 82.60 | L147: 33.04 | M147: 72.04
A148: 146 | B148: ZY2022147 | C148: 袁越 | D148: 6044紫云自治县坝羊镇科技宣教文化信息服务中心 | E148: 1 | F148: 12506604401管理岗位 | G148: 94.50 | H148: 37.80 | I148: 5 | J148: 07 | K148: 80.60 | L148: 32.24 | M148: 70.04
A149: 147 | B149: ZY2022146 | C149: 王涣 | D149: 6044紫云自治县坝羊镇科技宣教文化信息服务中心 | E149: 1 | F149: 12506604401管理岗位 | G149: 94.50 | H149: 37.80 | I149: 5 | J149: 07 | K149: 79.74 | L149: 31.90 | M149: 69.70
A150: 148 | B150: ZY2022148 | C150: 唐光贤 | D150: 6045紫云自治县四大寨乡农业服务中心 | E150: 1 | F150: 12506604501专业技术岗位 | G150: 79.50 | H150: 31.80 | I150: 5 | J150: 07 | K150: 77.30 | L150: 30.92 | M150: 62.72
A151: 149 | B151: ZY2022149 | C151: 彭阳 | D151: 6045紫云自治县四大寨乡农业服务中心 | E151: 1 | F151: 12506604501专业技术岗位 | G151: 67.00 | H151: 26.80 | I151: 5 | J151: 07 | K151: 70.40 | L151: 28.16 | M151: 54.96
A152: 150 | B152: ZY2022150 | C152: 魏雨盛 | D152: 6045紫云自治县四大寨乡农业服务中心 | E152: 1 | F152: 12506604501专业技术岗位 | G152: 61.00 | H152: 24.40 | I152: 5 | J152: 07 | K152: 73.50 | L152: 29.40 | M152: 53.80
A153: 151 | B153: ZY2022151 | C153: 李其龙 | D153: 6046紫云自治县四大寨乡水利和移民工作站 | E153: 1 | F153: 12506604601专业技术岗位 | G153: 74.50 | H153: 29.80 | I153: 5 | J153: 07 | K153: 80.10 | L153: 32.04 | M153: 61.84
A154: 152 | B154: ZY2022152 | C154: 陈倚鑫 | D154: 6046紫云自治县四大寨乡水利和移民工作站 | E154: 1 | F154: 12506604601专业技术岗位 | G154: 74.00 | H154: 29.60 | I154: 5 | J154: 07 | K154: 80.54 | L154: 32.22 | M154: 61.82
A155: 153 | B155: ZY2022153 | C155: 段武玺 | D155: 6046紫云自治县四大寨乡水利和移民工作站 | E155: 1 | F155: 12506604601专业技术岗位 | G155: 69.50 | H155: 27.80 | I155: 5 | J155: 07 | K155: 76.37 | L155: 30.55 | M155: 58.35
A156: 154 | B156: ZY2022155 | C156: 陆窑 | D156: 6048紫云自治县白石岩乡水利和移民工作站 | E156: 1 | F156: 12506604801管理岗位 | G156: 94.00 | H156: 37.60 | I156: 6 | J156: 07 | K156: 77.07 | L156: 30.83 | M156: 68.43
A157: 155 | B157: ZY2022154 | C157: 吕昌艳 | D157: 6048紫云自治县白石岩乡水利和移民工作站 | E157: 1 | F157: 12506604801管理岗位 | G157: 94.50 | H157: 37.80 | I157: 6 | J157: 07 | K157: 74.93 | L157: 29.97 | M157: 67.77
A158: 156 | B158: ZY2022156 | C158: 陈张稳 | D158: 6048紫云自治县白石岩乡水利和移民工作站 | E158: 1 | F158: 12506604801管理岗位 | G158: 92.50 | H158: 37.00 | I158: 6 | J158: 03 | K158: 73.87 | L158: 29.55 | M158: 66.55
A159: 157 | B159: ZY2022157 | C159: 袁胜丽 | D159: 6049紫云自治县白石岩乡财政分局 | E159: 1 | F159: 12506604901管理岗位 | G159: 99.00 | H159: 39.60 | I159: 6 | J159: 03 | K159: 76.23 | L159: 30.49 | M159: 70.09
A160: 158 | B160: ZY2022158 | C160: 申丽 | D160: 6049紫云自治县白石岩乡财政分局 | E160: 1 | F160: 12506604901管理岗位 | G160: 96.00 | H160: 38.40 | I160: 6 | J160: 03 | K160: 75.00 | L160: 30.00 | M160: 68.40
A161: 159 | B161: ZY2022159 | C161: 韦天玉 | D161: 6049紫云自治县白石岩乡财政分局 | E161: 1 | F161: 12506604901管理岗位 | G161: 95.50 | H161: 38.20 | I161: 6 | J161: 03 | K161: 73.57 | L161: 29.43 | M161: 67.63
A162: 160 | B162: ZY2022160 | C162: 黄贤 | D162: 6050紫云自治县白石岩乡林业和环境保护工作站 | E162: 1 | F162: 12506605001专业技术岗位 | G162: 66.00 | H162: 26.40 | I162: 8 | J162: 08 | K162: 70.87 | L162: 28.35 | M162: 54.75
A163: 161 | B163: ZY2022161 | C163: 陈明华 | D163: 6051紫云自治县白石岩乡农业服务中心 | E163: 1 | F163: 12506605101专业技术岗位 | G163: 74.00 | H163: 29.60 | I163: 6 | J163: 03 | K163: 73.50 | L163: 29.40 | M163: 59.00
A164: 162 | B164: ZY2022162 | C164: 范飞鹏 | D164: 6051紫云自治县白石岩乡农业服务中心 | E164: 1 | F164: 12506605101专业技术岗位 | G164: 70.50 | H164: 28.20 | I164: 6 | J164: 03 | K164: 76.03 | L164: 30.41 | M164: 58.61
A165: 163 | B165: ZY2022163 | C165: 袁斌 | D165: 6051紫云自治县白石岩乡农业服务中心 | E165: 1 | F165: 12506605101专业技术岗位 | G165: 65.50 | H165: 26.20 | I165: 6 | J165: 02 | K165: 72.17 | L165: 28.87 | M165: 55.07
A166: 164 | B166: ZY2022164 | C166: 周开登 | D166: 6052紫云自治县第一小学 | E166: 5 | F166: 12506605201专业技术岗位 | G166: 98.00 | H166: 39.20 | I166: 6 | J166: 03 | K166: 73.17 | L166: 29.27 | M166: 68.47
A167: 165 | B167: ZY2022165 | C167: 汪彩虹 | D167: 6052紫云自治县第一小学 | E167: 5 | F167: 12506605201专业技术岗位 | G167: 96.50 | H167: 38.60 | I167: 6 | J167: 03 | K167: 74.53 | L167: 29.81 | M167: 68.41
A168: 166 | B168: ZY2022166 | C168: 付思雨 | D168: 6052紫云自治县第一小学 | E168: 5 | F168: 12506605201专业技术岗位 | G168: 88.50 | H168: 35.40 | I168: 6 | J168: 03 | K168: 75.83 | L168: 30.33 | M168: 65.73
A169: 167 | B169: ZY2022167 | C169: 王梦妮 | D169: 6052紫云自治县第一小学 | E169: 3 | F169: 12506605202专业技术岗位 | G169: 92.50 | H169: 37.00 | I169: 7 | J169: 08 | K169: 74.67 | L169: 29.87 | M169: 66.87
A170: 168 | B170: ZY2022168 | C170: 谢登莲 | D170: 6052紫云自治县第一小学 | E170: 3 | F170: 12506605202专业技术岗位 | G170: 80.00 | H170: 32.00 | I170: 7 | J170: 08 | K170: 76.00 | L170: 30.40 | M170: 62.40
A171: 169 | B171: ZY2022169 | C171: 张小念 | D171: 6052紫云自治县第一小学 | E171: 3 | F171: 12506605202专业技术岗位 | G171: 80.00 | H171: 32.00 | I171: 7 | J171: 08 | K171: 73.00 | L171: 29.20 | M171: 61.20
A172: 170 | B172: ZY2022170 | C172: 蔡云霞 | D172: 6052紫云自治县第一小学 | E172: 3 | F172: 12506605202专业技术岗位 | G172: 76.50 | H172: 30.60 | I172: 7 | J172: 08 | K172: 74.00 | L172: 29.60 | M172: 60.20
A173: 171 | B173: ZY2022171 | C173: 杨文琼 | D173: 6052紫云自治县第一小学 | E173: 3 | F173: 12506605202专业技术岗位 | G173: 73.50 | H173: 29.40 | I173: 7 | J173: 08 | K173: 75.33 | L173: 30.13 | M173: 59.53
A174: 172 | B174: ZY2022172 | C174: 吴佳佳 | D174: 6052紫云自治县第一小学 | E174: 3 | F174: 12506605202专业技术岗位 | G174: 70.50 | H174: 28.20 | I174: 7 | J174: 08 | K174: 71.00 | L174: 28.40 | M174: 56.60
A175: 173 | B175: ZY2022173 | C175: 贺振霖 | D175: 6053紫云自治县第三小学 | E175: 3 | F175: 12506605301专业技术岗位 | G175: 85.00 | H175: 34.00 | I175: 7 | J175: 08 | K175: 71.00 | L175: 28.40 | M175: 62.40
A176: 174 | B176: ZY2022174 | C176: 王秋雨 | D176: 6053紫云自治县第三小学 | E176: 3 | F176: 12506605301专业技术岗位 | G176: 80.50 | H176: 32.20 | I176: 7 | J176: 08 | K176: 74.00 | L176: 29.60 | M176: 61.80
A177: 175 | B177: ZY2022176 | C177: 姚贵权 | D177: 6053紫云自治县第三小学 | E177: 6 | F177: 12506605302专业技术岗位 | G177: 87.50 | H177: 35.00 | I177: 7 | J177: 03 | K177: 70.33 | L177: 28.13 | M177: 63.13
A178: 176 | B178: ZY2022178 | C178: 宋旭 | D178: 6053紫云自治县第三小学 | E178: 6 | F178: 12506605302专业技术岗位 | G178: 82.00 | H178: 32.80 | I178: 7 | J178: 03 | K178: 74.00 | L178: 29.60 | M178: 62.40
A179: 177 | B179: ZY2022177 | C179: 杨关有 | D179: 6053紫云自治县第三小学 | E179: 6 | F179: 12506605302专业技术岗位 | G179: 85.50 | H179: 34.20 | I179: 7 | J179: 03 | K179: 70.33 | L179: 28.13 | M179: 62.33
A180: 178 | B180: ZY2022180 | C180: 杨兴艳 | D180: 6053紫云自治县第三小学 | E180: 6 | F180: 12506605302专业技术岗位 | G180: 76.50 | H180: 30.60 | I180: 7 | J180: 03 | K180: 73.67 | L180: 29.47 | M180: 60.07
A181: 179 | B181: ZY2022179 | C181: 姚燕芬 | D181: 6053紫云自治县第三小学 | E181: 6 | F181: 12506605302专业技术岗位 | G181: 77.50 | H181: 31.00 | I181: 7 | J181: 03 | K181: 70.67 | L181: 28.27 | M181: 59.27
A182: 180 | B182: ZY2022182 | C182: 龙小杉 | D182: 6053紫云自治县第三小学 | E182: 6 | F182: 12506605302专业技术岗位 | G182: 73.50 | H182: 29.40 | I182: 7 | J182: 03 | K182: 74.00 | L182: 29.60 | M182: 59.00
A183: 181 | B183: ZY2022181 | C183: 陆佳卉 | D183: 6053紫云自治县第三小学 | E183: 6 | F183: 12506605302专业技术岗位 | G183: 74.50 | H183: 29.80 | I183: 7 | J183: 03 | K183: 70.00 | L183: 28.00 | M183: 57.80
A184: 182 | B184: ZY2022183 | C184: 王小单 | D184: 6053紫云自治县第三小学 | E184: 6 | F184: 12506605302专业技术岗位 | G184: 73.00 | H184: 29.20 | I184: 7 | J184: 03 | K184: 70.33 | L184: 28.13 | M184: 57.33
A185: 183 | B185: ZY2022185 | C185: 胡天康 | D185: 6053紫云自治县第三小学 | E185: 6 | F185: 12506605302专业技术岗位 | G185: 69.00 | H185: 27.60 | I185: 7 | J185: 03 | K185: 72.33 | L185: 28.93 | M185: 56.53
A186: 184 | B186: ZY2022186 | C186: 张露澜 | D186: 6053紫云自治县第三小学 | E186: 6 | F186: 12506605302专业技术岗位 | G186: 67.00 | H186: 26.80 | I186: 7 | J186: 03 | K186: 66.67 | L186: 26.67 | M186: 53.47
A187: 185 | B187: ZY2022188 | C187: 吴芳芳 | D187: 6053紫云自治县第三小学 | E187: 6 | F187: 12506605302专业技术岗位 | G187: 63.00 | H187: 25.20 | I187: 7 | J187: 03 | K187: 69.67 | L187: 27.87 | M187: 53.07
A188: 186 | B188: ZY2022184 | C188: 蒯礼妹 | D188: 6053紫云自治县第三小学 | E188: 6 | F188: 12506605302专业技术岗位 | G188: 69.50 | H188: 27.80 | I188: 7 | J188: 03 | K188: 60.33 | L188: 24.13 | M188: 51.93
A189: 187 | B189: ZY2022175 | C189: 吴尚优 | D189: 6053紫云自治县第三小学 | E189: 6 | F189: 12506605302专业技术岗位 | G189: 95.50 | H189: 38.20 | I189: 7 | J189: 03 | K189: 缺考 | L189: 缺考 | M189: 缺考
A190: 188 | B190: ZY2022187 | C190: 杨欠欠 | D190: 6053紫云自治县第三小学 | E190: 6 | F190: 12506605302专业技术岗位 | G190: 65.50 | H190: 26.20 | I190: 7 | J190: 03 | K190: 缺考 | L190: 缺考 | M190: 缺考
A191: 189 | B191: ZY2022189 | C191: 杨昌勇 | D191: 6053紫云自治县第三小学 | E191: 2 | F191: 12506605303专业技术岗位 | G191: 82.50 | H191: 33.00 | I191: 6 | J191: 03 | K191: 73.80 | L191: 29.52 | M191: 62.52
A192: 190 | B192: ZY2022191 | C192: 罗冬冬 | D192: 6053紫云自治县第三小学 | E192: 2 | F192: 12506605303专业技术岗位 | G192: 78.50 | H192: 31.40 | I192: 6 | J192: 03 | K192: 75.37 | L192: 30.15 | M192: 61.55
A193: 191 | B193: ZY2022190 | C193: 郑朗 | D193: 6053紫云自治县第三小学 | E193: 2 | F193: 12506605303专业技术岗位 | G193: 81.50 | H193: 32.60 | I193: 6 | J193: 03 | K193: 71.97 | L193: 28.79 | M193: 61.39
A194: 192 | B194: ZY2022193 | C194: 唐萍 | D194: 6053紫云自治县第三小学 | E194: 2 | F194: 12506605303专业技术岗位 | G194: 74.50 | H194: 29.80 | I194: 6 | J194: 08 | K194: 73.67 | L194: 29.47 | M194: 59.27
A195: 193 | B195: ZY2022192 | C195: 韦峰 | D195: 6053紫云自治县第三小学 | E195: 2 | F195: 12506605303专业技术岗位 | G195: 76.00 | H195: 30.40 | I195: 6 | J195: 08 | K195: 68.57 | L195: 27.43 | M195: 57.83
A196: 194 | B196: ZY2022194 | C196: 李永江 | D196: 6053紫云自治县第三小学 | E196: 2 | F196: 12506605303专业技术岗位 | G196: 73.00 | H196: =G196/1.5*0.6 -> 29.20 | I196: 6 | J196: 08 | K196: 70.00 | L196: 28.00 | M196: 57.20
A197: 195 | B197: ZY2022196 | C197: 申孟林 | D197: 6053紫云自治县第三小学 | E197: 1 | F197: 12506605304专业技术岗位 | G197: 91.50 | H197: 36.60 | I197: 6 | J197: 08 | K197: 77.77 | L197: 31.11 | M197: 67.71
A198: 196 | B198: ZY2022195 | C198: 鲁云 | D198: 6053紫云自治县第三小学 | E198: 1 | F198: 12506605304专业技术岗位 | G198: 97.00 | H198: 38.80 | I198: 6 | J198: 08 | K198: 71.03 | L198: 28.41 | M198: 67.21
A199: 197 | B199: ZY2022197 | C199: 胡小念 | D199: 6053紫云自治县第三小学 | E199: 1 | F199: 12506605304专业技术岗位 | G199: 90.00 | H199: 36.00 | I199: 6 | J199: 08 | K199: 缺考 | L199: 缺考 | M199: 缺考
A200: 198 | B200: ZY2022199 | C200: 刘安琪 | D200: 6053紫云自治县第三小学 | E200: 2 | F200: 12506605305专业技术岗位 | G200: 94.50 | H200: 37.80 | I200: 6 | J200: 08 | K200: 79.07 | L200: =K200*0.4 -> 31.63 | M200: =H200+L200 -> 69.43
... 38 more rows

Sheet Sheet3
